bitfinex/quotes_ETHUSD_20250708
["timestamp","ask_amount","ask_price","bid_price","bid_amount"]
[1752008422610,0.05003443,2602.3,2602.0,3.84316701]
[1752008423114,3.84299109,2602.2,2601.9,0.192]
[1752008423327,4.03536248,2601.9,2601.5,0.0453052]
[1752008423511,0.04804366,2601.8,2601.5,3.88923411]
[1752008423879,0.192,2601.9,2601.7,3.84364069]
[1752008424085,10.8191,2602.2,2601.8,3.8433968]
[1752008424404,1.37075938,2602.1,2601.8,6.62155619]
[1752008424583,0.194,2602.3,2602.0,3.84310744]
[1752008424916,0.194,2602.3,2602.2,3.84290215]
[1752008426297,1.56809888,2602.3,2602.2,3.84290215]
[1752008426924,0.194,2602.3,2602.2,3.84290215]
[1752008427226,0.002,2602.3,2602.2,3.84290215]
[1752008432031,0.002,2602.3,2602.2,4.05343443]
[1752008432231,0.002,2602.3,2602.2,4.87810286]
[1752008433333,0.002,2602.3,2602.2,4.85957058]
[1752008436939,0.002,2602.3,2602.2,4.87810286]
[1752008437840,0.002,2602.3,2602.2,4.85957058]
[1752008438044,0.002,2602.3,2602.2,0.192]
[1752008438356,0.002,2602.3,2602.2,4.03490215]
[1752008441757,4.64224984,2602.1,2602.0,0.001]
[1752008441953,7.16320587,2602.1,2602.0,0.001]
[1752008445230,8.53840876,2602.1,2602.0,0.001]
[1752008445454,8.49037064,2602.1,2602.0,0.001]
[1752008447259,7.11516775,2602.1,2602.0,0.001]
[1752008447463,13.11620587,2602.1,2602.0,0.001]
[1752008447668,13.06816775,2602.1,2602.0,0.001]
[1752008448343,13.04216775,2602.1,2602.0,0.001]
[1752008448745,7.11516775,2602.1,2602.0,0.001]
[1752008448941,13.09020587,2602.1,2602.0,0.001]
[1752008449163,12.49216775,2602.1,2602.0,0.001]
[1752008450368,1.92291791,2602.1,2602.0,0.001]
[1752008450539,15.97503812,2602.1,2602.0,0.001]
[1752008450735,15.926,2602.1,2602.0,0.001]
[1752008451550,0.194,2602.3,2602.0,0.001]
[1752008451754,5.926,2602.2,2602.0,0.001]
[1752008451973,5.926,2602.2,2602.0,3.84419118]
[1752008452166,5.926,2602.2,2602.1,3.84304984]
[1752008452470,5.927,2602.3,2602.2,3.84290215]
[1752008452772,5.927,2602.3,2602.2,4.03490215]
[1752008452773,0.002,2602.3,2602.2,4.03490215]
[1752008453343,0.002,2602.3,2602.2,4.84132691]
[1752008454745,0.002,2602.3,2602.2,0.192]
[1752008454969,9.82087558,2602.3,2602.0,0.001]
[1752008455163,3.84304984,2602.1,2602.0,0.001]
[1752008456375,4.64544984,2602.1,2602.0,0.001]
[1752008456540,6.09209014,2602.1,2602.0,0.001]
[1752008456876,6.14012826,2602.1,2602.0,0.001]
[1752008457047,6.69012826,2602.1,2602.0,0.001]
[1752008457899,12.07112826,2602.1,2602.0,0.001]
[1752008458046,12.02209014,2602.1,2602.0,0.001]
[1752008458245,10.57544984,2602.1,2602.0,0.001]
[1752008458658,6.7344,2602.1,2602.0,0.001]
[1752008458863,6.78243812,2602.1,2602.0,0.001]
[1752008459046,6.17203812,2602.1,2602.0,0.001]
[1752008459254,6.124,2602.1,2602.0,0.001]
[1752008460055,10.78174984,2602.1,2602.0,0.001]
[1752008460369,10.78174984,2602.1,2601.8,0.192]
[1752008460370,7.55610344,2602.1,2601.8,0.192]
[1752008460674,7.60414156,2602.1,2601.8,0.192]
[1752008460873,7.60414156,2602.1,2601.8,0.1973638]
[1752008461282,11.4472259,2602.1,2601.8,0.1973638]
[1752008461457,5.46918778,2602.1,2601.8,0.1973638]
[1752008461657,5.937,2602.0,2601.8,0.1973638]
[1752008462493,3.89138705,2601.9,2601.8,0.1973638]
[1752008462792,3.89138705,2601.9,2601.8,0.0053638]
[1752008466102,0.8167,2602.1,2601.8,0.0053638]
[1752008466103,1.0087,2602.1,2601.8,0.0053638]
[1752008466290,5.935,2602.0,2601.8,0.0053638]
[1752008466600,9.77819863,2602.0,2601.8,0.0053638]
[1752008467065,3.89138705,2601.9,2601.8,0.0053638]
[1752008467265,15.27318705,2601.9,2601.8,0.0053638]
[1752008467476,15.22514524,2601.9,2601.8,0.0053638]
[1752008467671,21.16114524,2601.9,2601.8,0.0053638]
[1752008468178,19.77934524,2601.9,2601.8,0.0053638]
[1752008468412,19.97134524,2601.9,2601.8,0.0053638]
[1752008469379,21.38001619,2601.9,2601.8,0.0053638]
[1752008470712,22.70371619,2601.9,2601.8,0.0053638]
[1752008476427,22.70371619,2601.9,2601.4,0.0702802]
[1752008476428,4.39393619,2601.5,2601.4,0.0702802]
[1752008476726,19.82798539,2601.5,2601.4,0.0702802]
[1752008476920,19.77993619,2601.5,2601.4,0.0702802]
[1752008477522,22.14231148,2601.5,2601.4,0.0702802]
[1752008478842,23.48721148,2601.5,2601.4,0.0702802]
[1752008479042,3.84467512,2601.0,2600.9,2.5]
[1752008479332,20.57757512,2601.0,2600.9,2.5]
[1752008479535,15.941,2601.0,2600.9,2.5]
[1752008479834,19.78567512,2601.0,2600.9,2.5]
[1752008481930,21.29496001,2601.0,2600.9,2.5]
[1752008482616,22.09376001,2601.0,2600.9,2.5]
[1752008482803,22.64376001,2601.0,2600.9,2.5]
[1752008483004,5.19406647,2600.6,2600.5,0.0702802]
[1752008483221,21.5360533,2600.6,2600.5,0.0702802]
[1752008483442,15.54798747,2600.6,2600.5,0.0702802]
[1752008483644,20.59306647,2600.6,2600.5,0.0702802]
[1752008483944,5.949,2600.6,2600.5,0.0702802]
[1752008485042,10.0,2600.9,2600.5,4.27129454]
[1752008485240,3.844741,2601.0,2600.5,4.27129454]
[1752008485241,5.953,2600.8,2600.5,0.4258802]
[1752008485409,5.953,2600.8,2600.5,4.27123139]
[1752008485609,6.00106213,2600.8,2600.5,4.27123139]
[1752008486409,6.00106213,2600.8,2600.5,4.46323139]
[1752008486609,5.953,2600.8,2600.5,4.46323139]
[1752008487138,3.84497482,2600.8,2600.5,0.6178802]
[1752008487443,5.951,2600.7,2600.5,0.2622802]
[1752008487663,9.79618186,2600.7,2600.5,0.2622802]
[1752008487962,9.79618186,2600.7,2600.5,0.0702802]
[1752008487963,4.03713286,2600.7,2600.5,0.0702802]
[1752008488262,5.95,2600.6,2600.5,0.0702802]
[1752008490272,5.99806583,2600.6,2600.5,0.0702802]
[1752008491166,9.8433323,2600.6,2600.5,0.0702802]
[1752008491460,9.79526647,2600.6,2600.5,0.0702802]
[1752008492636,22.57082214,2600.6,2600.5,0.0702802]
[1752008495172,14.60466647,2600.6,2600.5,0.0702802]
[1752008495343,20.55466647,2600.6,2600.5,0.0702802]
[1752008497682,20.55166647,2600.6,2600.5,0.0702802]
[1752008501383,0.8293,2600.9,2600.5,0.0702802]
[1752008501551,9.235,2601.1,2600.5,0.0702802]
[1752008501552,0.04805843,2601.0,2600.5,0.0702802]
[1752008501750,9.235,2601.1,2600.8,3.84496475]
[1752008501751,5.945,2600.9,2600.8,3.84496475]
[1752008502386,5.945,2600.9,2600.7,0.3556]
[1752008502550,5.945,2600.9,2600.8,3.84497077]
[1752008502755,9.235,2601.1,2600.9,3.84482294]
[1752008502756,0.192,2601.1,2600.9,3.84482294]
[1752008502956,0.192,2601.1,2600.8,4.64955449]
[1752008502957,0.192,2601.1,2600.8,4.64950917]
[1752008503260,0.192,2601.1,2600.9,3.84475206]
[1752008503797,6.138,2601.1,2600.9,3.84475206]
[1752008504770,0.04805104,2601.4,2601.2,3.84435705]
[1752008504964,0.192,2601.5,2601.2,4.19995705]
[1752008505174,0.192,2601.5,2601.3,3.84423173]
[1752008505476,5.944,2601.4,2601.3,3.84423173]
[1752008506317,0.2400455,2601.7,2601.5,3.84391995]
[1752008506462,5.943,2601.6,2601.5,3.84391995]
[1752008506798,5.943,2601.6,2601.4,3.84401516]
[1752008508905,0.24004366,2601.8,2601.3,0.192]
[1752008509201,0.24203996,2602.0,2601.7,0.3556]
[1752008509494,5.939,2601.9,2601.7,0.3556]
[1752008509706,5.939,2601.9,2601.7,4.19922625]
[1752008510378,0.194,2602.0,2601.8,3.84349296]
[1752008510886,0.002,2602.0,2601.8,3.84349296]
[1752008511106,0.002,2602.0,2601.7,0.5476]
[1752008511412,0.002,2602.0,2601.9,3.84334524]
[1752008512282,0.002,2602.0,2601.8,3.84341585]
[1752008512786,0.002,2602.0,2601.9,3.84334524]
[1752008513388,0.002,2602.0,2601.8,3.84341101]
[1752008513607,0.002,2602.0,2601.9,3.84334524]
[1752008513817,0.002,2602.0,2601.7,4.39120841]
[1752008514015,0.002,2602.0,2601.8,3.84334715]
[1752008514231,0.002,2602.0,2601.9,3.84334524]
[1752008514533,0.002,2602.0,2601.9,4.03534524]
[1752008515126,0.002,2602.0,2601.9,4.05388859]
[1752008515615,0.002,2602.0,2601.9,4.40948859]
[1752008515798,0.002,2602.0,2601.9,5.27868425]
[1752008517516,0.002,2602.0,2601.9,0.192]
[1752008518429,0.002,2602.0,2601.6,4.19928699]
[1752008518631,0.002,2602.0,2601.8,0.192]
[1752008518928,0.002,2602.0,2601.8,4.03543613]
[1752008519106,0.002,2602.0,2601.7,3.84355447]
[1752008519107,0.002,2602.0,2601.9,3.86189009]
[1752008519315,0.002,2602.0,2601.9,4.03534524]
[1752008520601,0.002,2602.0,2601.9,0.192]
[1752008529310,0.002,2602.0,2601.9,4.03534524]
[1752008529513,0.002,2602.0,2601.9,4.39094524]
[1752008529711,0.002,2602.0,2601.9,5.87670685]
[1752008529946,0.002,2602.0,2601.9,17.72570685]
[1752008536455,0.002,2602.0,2601.9,24.34899972]
[1752008538033,0.002,2602.0,2601.9,27.72570685]
[1752008538243,0.002,2602.0,2601.9,34.34899972]
[1752008560880,1e-08,2602.0,2601.9,34.89899972]
[1752008561383,1e-08,2602.0,2601.9,34.34899972]
[1752008566124,1e-08,2602.0,2601.9,5.52110685]
[1752008566325,1e-08,2602.0,2601.9,9.92934524]
[1752008566626,1e-08,2602.0,2601.9,9.92834524]
[1752008566627,0.82270001,2602.0,2601.9,9.92834524]
[1752008568428,0.82270001,2602.0,2601.9,0.192]
[1752008569210,1e-08,2602.0,2601.9,4.03534524]
[1752008569913,1e-08,2602.0,2601.9,9.92634524]
[1752008570232,1e-08,2602.0,2601.9,11.9656569]
[1752008570925,1e-08,2602.0,2601.9,12.3212569]
[1752008573731,1e-08,2602.0,2601.9,17.0112569]
[1752008575012,1e-08,2602.0,2601.9,27.0112569]
[1752008580353,1e-08,2602.1,2602.0,14.39319754]
[1752008580556,1e-08,2602.1,2602.0,25.22098289]
[1752008581763,1e-08,2602.1,2602.0,29.83117539]
[1752008585186,1e-08,2602.1,2602.0,59.83117539]
[1752008585329,1e-08,2602.1,2602.0,46.50320139]
[1752008585530,1e-08,2602.1,2602.0,51.19320139]
[1752008585724,1e-08,2602.3,2602.2,14.39290215]
[1752008586049,1e-08,2602.3,2602.2,36.9806875]
[1752008586242,1e-08,2602.3,2602.2,37.1726875]
[1752008588068,1e-08,2602.3,2602.2,25.4126875]
[1752008588239,1e-08,2602.3,2602.2,31.2906875]
[1752008591376,1e-08,2602.3,2602.2,35.9806875]
[1752008596051,1e-08,2602.3,2602.2,35.7886875]
[1752008599450,1e-08,2602.3,2602.2,40.39888]
[1752008604454,1e-08,2602.3,2602.2,35.7886875]
[1752008604785,1e-08,2602.3,2602.2,40.39332012]
[1752008605086,1e-08,2602.3,2602.2,35.7886875]
[1752008605990,1e-08,2602.3,2602.2,35.9806875]
[1752008609495,0.002,2603.0,2602.9,3.84186868]
[1752008609786,0.002,2603.0,2602.9,32.57634842]
[1752008609787,1e-08,2603.0,2602.9,32.57634842]
[1752008609958,1e-08,2603.0,2602.9,32.76834842]
[1752008610772,1e-08,2603.0,2602.9,33.05659038]
[1752008611363,1e-08,2603.2,2603.1,14.3915735]
[1752008611671,1e-08,2603.2,2603.1,36.18280428]
[1752008611872,1e-08,2603.2,2603.1,36.37480428]
[1752008612771,1e-08,2603.2,2603.1,35.82480428]
[1752008615083,1e-08,2603.2,2603.1,40.51480428]
[1752008617593,1e-08,2603.2,2603.1,41.06480428]
[1752008617794,1e-08,2603.2,2603.1,41.42040428]
[1752008623865,1e-08,2603.2,2603.1,41.06480428]
[1752008626377,1e-08,2603.2,2603.1,53.02977328]
[1752008626578,1e-08,2603.2,2603.1,49.84713928]
[1752008626871,1e-08,2603.2,2603.1,46.44604928]
[1752008627193,1e-08,2603.4,2603.3,14.74687837]
[1752008627420,1e-08,2603.4,2603.3,68.23820872]
[1752008627707,1e-08,2603.4,2603.3,59.82898272]
[1752008627995,1e-08,2603.4,2603.3,55.27042772]
[1752008628195,1e-08,2603.4,2603.3,44.48083572]
[1752008628395,1e-08,2603.4,2603.3,41.82406372]
[1752008631794,1e-08,2604.0,2603.9,4.39039325]
[1752008632094,1e-08,2604.0,2603.9,38.30180615]
[1752008632409,1e-08,2604.0,2603.9,38.47533659]
[1752008632903,1e-08,2604.0,2603.9,38.66546953]
[1752008638012,1e-08,2604.0,2603.9,39.02106953]
[1752008638601,0.002,2604.5,2604.4,14.74525596]
[1752008638602,1e-08,2604.5,2604.4,14.74525596]
[1752008638786,1e-08,2604.5,2604.4,33.08754883]
[1752008639113,1e-08,2604.5,2604.4,51.55334183]
[1752008639978,1e-08,2604.5,2604.4,51.9116774]
[1752008640178,1e-08,2604.5,2604.4,54.76100831]
[1752008640403,1e-08,2604.5,2604.4,51.90136331]
[1752008641011,1e-08,2604.5,2604.4,52.18804826]
[1752008644030,1e-08,2604.5,2604.4,42.05570726]
[1752008644191,1e-08,2604.5,2604.4,41.15010726]
[1752008644387,1e-08,2604.5,2604.4,19.83681439]
[1752008644890,1e-08,2604.5,2604.4,29.83681439]
[1752008645322,1e-08,2604.5,2604.4,36.46010726]
[1752008646834,1e-08,2604.5,2604.4,54.88366726]
[1752008647187,1e-08,2604.5,2604.4,55.23926726]
[1752008649226,1e-08,2604.5,2604.4,51.35856026]
[1752008649430,1e-08,2604.5,2604.4,49.56722226]
[1752008650622,1e-08,2604.5,2604.4,54.25722226]
[1752008650894,1e-08,2604.5,2604.4,53.89888669]
[1752008651726,1e-08,2604.5,2604.4,57.94788669]
[1752008651926,1e-08,2604.5,2604.4,53.89888669]
[1752008652223,1e-08,2604.5,2604.4,45.09237169]
[1752008655107,1e-08,2604.5,2604.4,50.51667569]
[1752008655924,1e-08,2604.5,2604.4,41.69737169]
[1752008656729,1e-08,2604.5,2604.4,45.93544269]
[1752008656948,1e-08,2604.5,2604.4,45.52339269]
[1752008659096,0.0702802,2604.9,2604.8,4.38906633]
[1752008659301,0.0702802,2604.9,2604.8,23.9249598]
[1752008659598,0.0702802,2604.9,2604.8,34.09772341]
[1752008666137,0.0702802,2604.9,2604.8,38.32608884]
[1752008666743,0.0702802,2604.9,2604.8,33.7393841]
[1752008667107,0.0702802,2604.9,2604.8,38.32608884]
[1752008669150,0.00419685,2604.9,2604.8,38.32608884]
[1752008672040,0.00419685,2604.9,2604.8,21.15279597]
[1752008672348,0.00419685,2604.9,2604.8,37.77608884]
[1752008672510,0.00419685,2604.9,2604.8,27.77608884]
[1752008675146,0.00419685,2604.9,2604.8,37.77481087]
[1752008676851,0.00419685,2604.9,2604.8,37.77581087]
[1752008678243,0.00419685,2604.9,2604.8,33.18910613]
[1752008679132,0.002,2605.6,2604.8,33.18910613]
[1752008679133,0.7578,2605.6,2605.2,4.38837021]
[1752008679365,0.7578,2605.6,2605.5,10.46132779]
[1752008679667,0.7578,2605.6,2605.5,22.36252779]
[1752008683264,0.002,2605.6,2605.5,22.36252779]
[1752008685462,0.002,2605.6,2605.5,32.91252779]
[1752008685651,0.002,2605.6,2605.5,37.51551856]
[1752008685830,0.002,2605.6,2605.5,41.36441104]
[1752008686028,0.002,2605.6,2605.5,30.1381274]
[1752008686233,0.7902,2605.6,2605.5,29.5881274]
[1752008691270,0.002,2605.6,2605.5,29.5881274]
[1752008692070,0.002,2605.6,2605.5,30.1381274]
[1752008708589,0.002,2605.6,2605.5,34.74111817]
[1752008708790,1e-08,2605.6,2605.5,34.74111817]
[1752008708973,0.002,2606.0,2605.9,3.83744579]
[1752008709175,0.002,2606.0,2605.9,16.71011634]
[1752008709376,0.002,2606.0,2605.9,16.88292046]
[1752008712197,0.002,2606.0,2605.9,17.16716257]
[1752008712598,0.002,2606.0,2605.9,16.88292046]
[1752008714399,0.002,2606.0,2605.9,15.73164579]
[1752008714572,0.8257,2606.0,2605.9,15.73164579]
[1752008719885,0.002,2606.0,2605.9,22.35493866]
[1752008720985,0.002,2606.0,2605.9,32.35493866]
[1752008721787,0.002,2606.0,2605.9,36.95792943]
[1752008722027,0.002,2606.0,2605.9,40.80682191]
[1752008724519,0.002,2606.0,2605.9,36.56331734]
[1752008725416,0.002,2606.0,2605.9,36.20383114]
[1752008726628,0.002,2606.0,2605.9,40.80682191]
[1752008726931,1e-08,2606.0,2605.9,41.35682191]
[1752008727494,1e-08,2606.0,2605.9,41.71242191]
[1752008730104,1e-08,2606.0,2605.9,41.35682191]
[1752008730506,1e-08,2606.0,2605.9,46.04682191]
[1752008730711,1e-08,2606.0,2605.9,46.40242191]
[1752008734635,1e-08,2606.0,2605.9,41.79943114]
[1752008736250,1e-08,2606.0,2605.9,38.86146797]
[1752008744304,1e-08,2606.0,2605.9,34.26453827]
[1752008745349,0.80380001,2606.0,2605.9,34.26453827]
[1752008746336,0.80380001,2606.0,2605.9,16.5782]
[1752008747426,0.80380001,2606.0,2605.9,20.41564579]
[1752008748142,0.80380001,2606.0,2605.9,15.72564579]
[1752008749019,0.80380001,2606.0,2605.9,22.34893866]
[1752008749251,1e-08,2606.0,2605.9,22.34893866]
[1752008749432,1e-08,2606.0,2605.9,25.491648]
[1752008760073,1e-08,2606.0,2605.9,30.181648]
[1752008763648,1e-08,2606.0,2605.9,34.7785777]
[1752008765874,1e-08,2606.0,2605.9,44.7785777]
[1752008766895,1e-08,2606.0,2605.9,40.0885777]
[1752008770077,1e-08,2606.0,2605.9,35.491648]
[1752008770275,1e-08,2606.0,2605.9,36.041648]
[1752008776204,0.0722802,2606.6,2605.9,36.397248]
[1752008776355,0.0722802,2606.6,2606.5,10.45985531]
[1752008776554,0.0722802,2606.6,2606.5,32.69685531]
[1752008776800,0.002,2606.7,2606.5,32.69685531]
[1752008776801,0.002,2606.7,2606.6,13.83641525]
[1752008776957,0.002,2606.7,2606.6,14.02631211]
[1752008777483,0.7777,2607.1,2606.9,3.83597376]
[1752008777656,0.7777,2607.1,2606.9,22.16462571]
[1752008777859,0.7777,2607.1,2606.9,22.14626663]
[1752008780401,0.7777,2607.1,2606.9,24.74450248]
[1752008782598,0.002,2607.1,2606.9,24.74450248]
[1752008784965,0.002,2607.1,2606.9,34.74450248]
[1752008786266,0.002,2607.1,2606.9,34.93570248]
[1752008786467,0.002,2607.1,2606.9,28.31240961]
[1752008786681,0.8049,2607.0,2606.9,15.71417376]
[1752008789206,0.8049,2607.0,2606.9,15.52297376]
[1752008789674,0.8049,2607.0,2606.9,11.687]
[1752008790808,0.8049,2607.0,2606.9,15.52297376]
[1752008791187,0.8049,2607.0,2606.9,11.687]
[1752008792086,0.8049,2607.0,2606.9,15.52297376]
[1752008792609,0.8049,2607.0,2606.9,11.687]
[1752008793322,0.8049,2607.0,2606.9,15.52297376]
[1752008794003,0.8049,2607.0,2606.9,22.14626663]
[1752008794004,0.002,2607.0,2606.9,22.14626663]
[1752008794212,0.002,2607.0,2606.9,24.93570248]
[1752008794888,0.002,2607.0,2606.9,15.71417376]
[1752008795224,0.7926,2607.0,2606.9,15.71417376]
[1752008797321,0.7926,2607.0,2606.9,22.33746663]
[1752008799418,0.002,2607.0,2606.9,22.33746663]
[1752008801609,0.002,2607.0,2606.9,32.69306663]
[1752008801925,0.002,2607.0,2606.9,36.34598248]
[1752008804707,0.002,2607.0,2606.9,41.03598248]
[1752008807709,0.002,2607.0,2606.9,45.63653228]
[1752008808302,0.002,2607.0,2606.9,41.03598248]
[1752008814633,0.002,2607.0,2606.9,34.41268961]
[1752008814934,0.002,2607.0,2606.9,40.66938248]
[1752008815301,0.002,2607.0,2606.9,34.04608961]
[1752008816698,0.8057,2607.0,2606.9,24.04608961]
[1752008817010,0.8057,2607.0,2606.9,20.39317376]
[1752008818634,0.002,2607.0,2606.9,20.39317376]
[1752008819510,0.002,2607.0,2606.9,15.70317376]
[1752008829960,0.002,2607.0,2606.9,22.32646663]
[1752008832865,0.8235,2607.0,2606.9,4.02717376]
[1752008833079,0.8235,2607.0,2606.9,9.86317376]
[1752008835177,0.002,2607.0,2606.9,9.86317376]
[1752008835497,0.002,2607.0,2606.9,21.23310005]
[1752008841983,0.002,2607.0,2606.9,25.83364985]
[1752008842279,0.002,2607.0,2606.9,21.23310005]
[1752008843086,0.002,2607.0,2606.9,14.02717376]
[1752008843390,0.002,2607.0,2606.9,19.86217376]
[1752008843566,0.002,2607.0,2606.9,9.86217376]
[1752008848474,0.002,2607.0,2606.9,9.86117376]
[1752008849104,0.002,2607.0,2606.9,19.86117376]
[1752008849282,0.002,2607.0,2606.9,27.98939412]
[1752008854502,0.002,2607.3,2607.2,3.83553237]
[1752008854798,0.002,2607.3,2607.2,16.29282524]
[1752008855006,0.002,2607.3,2607.2,16.48402524]
[1752008863712,0.0722802,2607.5,2607.4,3.83523816]
[1752008863919,0.0722802,2607.5,2607.4,23.10104052]
[1752008864082,0.0722802,2607.5,2607.4,23.27389983]
[1752008868637,0.0722802,2607.5,2607.4,29.8971927]
[1752008868835,0.0722802,2607.5,2607.4,30.2527927]
[1752008870140,0.002,2608.0,2607.9,3.83450285]
[1752008870326,0.002,2608.0,2607.9,9.66650285]
[1752008870638,0.002,2608.0,2607.9,9.85770285]
[1752008873544,0.002,2608.0,2607.9,9.85670285]
[1752008874974,0.002,2608.0,2607.9,12.24376458]
[1752008877930,0.002,2608.0,2607.9,11.88716458]
[1752008878114,0.002,2608.0,2607.9,4.02570285]
[1752008878319,0.002,2608.0,2607.9,9.85570285]
[1752008880154,0.002,2608.0,2607.9,10.21404354]
[1752008880839,0.002,2608.0,2607.9,10.2140521]
[1752008882658,0.002,2608.0,2607.9,10.2130521]
[1752008883250,0.002,2608.0,2607.9,9.85470285]
[1752008883864,0.763,2608.0,2607.9,4.02570285]
[1752008884059,0.763,2608.0,2607.9,9.85470285]
[1752008885160,0.763,2608.0,2607.9,4.02570285]
[1752008885460,0.763,2608.0,2607.9,9.85470285]
[1752008888569,0.763,2608.0,2607.9,0.1912]
[1752008888756,0.763,2608.0,2607.8,4.02574705]
[1752008888943,0.04793128,2607.9,2607.8,4.02574705]
[1752008889144,0.04793128,2607.9,2607.8,9.85474705]
[1752008889340,0.763,2608.0,2607.9,3.83450285]
[1752008890055,0.763,2608.0,2607.8,9.85477928]
[1752008890643,0.763,2608.0,2607.8,4.02577928]
[1752008890831,0.763,2608.0,2607.9,5.829]
[1752008891565,0.7794,2607.9,2607.7,5.829]
[1752008891753,0.04793312,2607.8,2607.7,5.829]
[1752008892479,0.04793312,2607.8,2607.3,6.62429287]
[1752008892673,0.23913312,2607.8,2607.6,3.8349423]
[1752008892888,0.23913312,2607.8,2607.6,5.829]
[1752008893579,0.7794,2607.7,2607.6,5.829]
[1752008893776,0.7794,2607.7,2607.6,9.663944]
[1752008894342,0.7794,2607.7,2607.6,5.829]
[1752008894662,0.7794,2607.7,2607.6,9.663944]
[1752008902476,0.23913312,2607.8,2607.7,3.83479694]
[1752008902774,1e-08,2608.2,2608.0,0.55]
[1752008902973,1e-08,2608.2,2608.1,32.48941812]
[1752008903155,1e-08,2608.2,2608.1,32.66230168]
[1752008908184,1e-08,2608.2,2608.1,37.35230168]
[1752008908382,1e-08,2608.2,2608.1,41.20119416]
[1752008908682,1e-08,2608.2,2608.1,40.84559416]
[1752008914156,1e-08,2608.2,2608.1,36.15559416]
[1752008931799,1e-08,2608.2,2608.1,41.75119416]
[1752008932007,1e-08,2608.2,2608.1,46.35174396]
[1752008932507,1e-08,2608.2,2608.1,41.75119416]
[1752008934512,0.002,2608.7,2608.3,4.18951481]
[1752008934710,0.002,2608.7,2608.3,31.12135871]
[1752008934913,0.002,2608.7,2608.3,31.10305111]
[1752008935513,0.002,2608.7,2608.3,26.50290016]
[1752008937814,0.002,2608.7,2608.3,31.19290016]
[1752008944100,0.002,2608.7,2608.3,35.79305111]
[1752008950359,0.002,2608.7,2608.3,31.19290016]
[1752008956019,0.002,2608.7,2608.3,26.50290016]
[1752008959254,0.002,2608.7,2608.3,31.10305111]
[1752008959450,0.82690001,2608.6,2608.3,7.87400729]
[1752008959650,0.82690001,2608.6,2608.3,9.84911481]
[1752008960567,0.82690001,2608.6,2608.3,4.02611481]
[1752008960731,0.82690001,2608.6,2608.3,9.84911481]
[1752008965654,0.82690001,2608.6,2608.3,4.02611481]
[1752008965859,0.82690001,2608.6,2608.3,9.84811481]
[1752008967356,0.82690001,2608.6,2608.3,0.1922]
[1752008967543,0.87481843,2608.6,2608.3,9.84811481]
[1752008968856,0.82690001,2608.6,2608.3,9.84811481]
[1752008972835,1e-08,2608.6,2608.3,12.37423547]
[1752008979676,1e-08,2608.6,2608.3,6.55223547]
[1752008979974,1e-08,2608.6,2608.3,12.39154307]
[1752008980174,1e-08,2608.6,2608.3,12.37323547]
[1752008982174,1e-08,2608.6,2608.3,17.06323547]
[1752008984277,1e-08,2608.6,2608.3,12.37323547]
[1752008987179,1e-08,2608.6,2608.3,6.55223547]
[1752008987360,1e-08,2608.6,2608.3,12.37223547]
[1752008993002,1e-08,2608.6,2608.3,18.19189182]
[1752008994053,1e-08,2608.6,2608.3,14.35697701]
[1752008994380,1e-08,2608.6,2608.3,18.19089182]
[1752008998208,0.11750559,2608.8,2608.7,9.10298329]
[1752008998386,0.11750559,2608.8,2608.7,15.13763891]
[1752008998561,0.11750559,2608.8,2608.7,15.32883891]
[1752008999277,0.11750559,2608.8,2608.7,15.32890592]
[1752009000189,0.11750559,2608.8,2608.7,15.11318329]
[1752009000589,0.11750559,2608.8,2608.7,11.27985635]
[1752009000886,0.11750559,2608.8,2608.7,11.4955825]
[1752009002584,0.11750559,2608.8,2608.7,15.32890944]
[1752009004059,3.83482015,2609.1,2608.7,15.32890944]
[1752009004362,0.0296277,2609.0,2608.8,0.21572615]
[1752009004691,0.0296277,2609.0,2608.9,0.21572615]
[1752009004891,0.0296277,2609.0,2608.9,5.4853825]
[1752009007205,0.8053277,2609.0,2608.9,5.4853825]
[1752009008696,0.7934777,2609.0,2608.9,5.4853825]
[1752009008985,1.72590313,2609.0,2608.9,5.4853825]
[1752009020397,0.7934777,2609.0,2608.9,5.4853825]
[1752009020803,0.7934777,2609.0,2608.9,0.21572615]
[1752009021006,0.7934777,2609.0,2608.9,5.4853825]
[1752009024002,0.7934777,2609.0,2608.9,5.48543656]
[1752009030809,0.7934777,2609.0,2608.9,0.21578021]
[1752009031008,1.26333562,2609.0,2608.7,14.91897612]
[1752009031982,1.26333562,2609.0,2608.9,5.26965635]
[1752009048638,1.26533562,2609.0,2608.9,5.26965635]
[1752009048840,0.7954777,2609.0,2608.9,5.26965635]
[1752009052139,0.7954777,2609.0,2608.9,9.10268942]
[1752009052747,0.7954777,2609.0,2608.9,5.26965635]
[1752009053946,0.7954777,2609.0,2608.9,9.10268942]
[1752009054143,0.002,2609.0,2608.9,9.10268942]
[1752009054918,0.0197777,2609.0,2608.9,9.10268942]
[1752009055113,0.0197777,2609.0,2608.9,3.83303307]
[1752009069937,0.002,2609.0,2608.9,3.83303307]
[1752009070873,0.002,2609.0,2608.9,3.83403307]
[1752009084478,0.002,2609.0,2608.9,9.64303307]
[1752009092687,0.002,2609.0,2608.9,0.001]
[1752009092892,0.002,2609.0,2608.9,5.27065635]
[1752009093397,0.002,2609.0,2608.9,9.10368942]
[1752009099539,0.002,2609.0,2608.9,3.83403307]
[1752009121760,0.002,2609.0,2608.9,0.001]
[1752009122153,0.002,2609.0,2608.9,3.83403307]
[1752009123056,0.002,2609.0,2608.9,0.001]
[1752009123958,0.002,2609.0,2608.9,3.83403307]
[1752009124859,0.002,2609.0,2608.9,0.001]
[1752009125343,0.002,2609.0,2608.9,3.83403307]
[1752009127472,0.002,2609.0,2608.9,0.001]
[1752009127766,0.002,2609.0,2608.9,3.83403307]
[1752009151400,0.002,2609.0,2608.9,0.001]
[1752009151596,0.7848,2609.0,2608.9,0.001]
[1752009152397,4.61768616,2609.0,2608.9,0.001]
[1752009152589,5.46995914,2609.0,2608.9,0.001]
[1752009153000,1.63707298,2609.0,2608.9,5.27065635]